Cogmind - Beta 12 @@@ ROGUE MODE // 2023.09.04 @ 10:51:50 Player: scoobysnack1 Result: Smashed by cave-in Performance ------------- Evolutions (0) 0 Regions Visited (0) 0 Robots Destroyed (3) 15 Value Destroyed (21) 21 Prototype IDs (0) 0 Alien Tech Used (0) 0 Bonus (0) 0 TOTAL SCORE: 36 Bonus ------- None Cogmind --------- Core Integrity 0/250 Matter 265/300 Energy 100/100 System Corruption 12% Temperature Cool (0) Movement Core (100) Ox1 Location -11/Junkyard Parts ------- > --- POWER (1) -------- (None) > --- PROPULSION (2) --- (None) > --- UTILITY (2) ------ Small Storage Unit > --- WEAPON (2) ------- (None) > --- INVENTORY (8) ---- Ion Engine Light Treads Light Treads Aluminum Leg Wheel Improved Terrain Scanner Light Assault Rifle Light Assault Rifle Peak State ------------ > --- POWER ------------ Ion Engine > --- PROPULSION ------- Wheel Wheel > --- UTILITY ---------- Small Storage Unit Improved Terrain Scanner > --- WEAPON ----------- Small Laser Light Assault Rifle > --- INVENTORY -------- Ion Engine Light Treads Light Treads Aluminum Leg Aluminum Leg Light Assault Rifle [Rating: 9] Favorites ----------- Power Ion Engine Engine Ion Engine Propulsion Wheel Wheel Wheel Utility Small Storage Unit Device Improved Terrain Scanner Storage Small Storage Unit Weapon Small Laser Energy Gun Small Laser Ballistic Gun Light Assault Rifle Special Weapon Mining Laser Build | -11 ------- Run | Jun Slots Evolved . | . Power . | . Propulsion . | . Utility . | . Weapon . | . Parts Attached 11 | 11 Power 1 | 1 Engine 1 | 1 Core . | . Reactor . | . Propulsion 2 | 2 Treads . | . Leg . | . Wheel 2 | 2 Hover . | . Flight . | . Utility 5 | 5 Device 4 | 4 Storage 1 | 1 Processor . | . Hackware . | . Protection . | . Artifact . | . Weapon 3 | 3 Energy Gun 1 | 1 Energy Cannon . | . Ballistic Gun 1 | 1 Ballistic Cannon . | . Launcher . | . Special Weapon 1 | 1 Impact Weapon . | . Slashing Weapon . | . Piercing Weapon . | . Special Melee Weapon . | . Unidentified Prototypes . | . Parts Lost 6 | 6 Power 1 | 1 Propulsion 2 | 2 Utility 1 | 1 Weapon 2 | 2 Highest Loss Streak 3 | 3 To Critical Strikes . | . Average Slot Usage (%) . | . Naked Turns . | . Heaviest Build 13 | 13 Greatest Support 20 | 20 Greatest Overweight (x) 2 | 2 Average Overweight (x) . | . Largest Inventory Capacity 8 | 8 Average Capacity 7 | 7 Most Carried 8 | 8 Average Carried 7 | 7 Final Capacity 8 | 8 Final Carried 8 | 8 Class Distribution -------------------- None Dominant Class ---------------- None Resources | -11 ----------- Run | Jun Matter Collected 306 | 306 Remotely . | . Salvage Created 43 | 43 Parts 8 | 8 Haulers Intercepted . | . Recyclers Shooed . | . Parts Field Recycled . | . Retrieved Matter . | . Parts Self-Destructed . | . Prevented . | . Kills | -11 ------- Run | Jun Combat Hostiles Destroyed . | . Classes Destroyed 1 | 1 Tunneler 3 | 3 Best Kill Streak 1 | 1 Combat Bots Only . | . Max Kills in Single Turn 1 | 1 Gunslinging . | . Exploded . | . Melee . | . Uniques/NPCs Destroyed . | . Combat | -11 -------- Run | Jun Damage Taken 768 | 768 Core 250 | 250 Absorbed by Shields . | . Core Remaining (%) . | . Volleys Fired 343 | 343 Largest 2 | 2 Hottest 100 | 100 Shots Fired 350 | 350 Gun 20 | 20 Cannon . | . Launcher . | . Special 330 | 330 Kinetic 6 | 6 Thermal 344 | 344 Explosive . | . Electromagnetic . | . Robot Hit Streak 4 | 4 Robot Miss Streak 2 | 2 Penetration Max . | . Secondary Targets . | . Shots Hit Robots 12 | 12 Core Hits 4 | 4 Critical Kills . | . Critical Parts Destroyed . | . Critical Strikes . | . Melee Attacks . | . Impact . | . Slashing . | . Piercing . | . Sneak Attacks . | . Combat Hostiles . | . Follow-up Attacks . | . Damage Inflicted 119 | 119 Guns 119 | 119 Cannons . | . Explosions . | . Melee . | . Ramming . | . Kinetic 32 | 32 Thermal 87 | 87 Explosive . | . Electromagnetic . | . Impact . | . Slashing . | . Piercing . | . Highest Corruption 12 | 12 Average Corruption 3 | 3 Corruption Purged . | . Corruption Blocked . | . Effects 23 | 23 Message Errors 4 | 4 Matter Fused 8 | 8 Heat Flow Errors 2 | 2 Energy Discharges 1 | 1 Parts Fused 1 | 1 Data Loss (minor) 4 | 4 Data Loss (major) 2 | 2 Misfires 1 | 1 Overload Shots . | . Overflow Damage . | . Projectiles . | . Explosions . | . Melee . | . Knockbacks . | . Impact . | . Kinetic . | . Secondary . | . Self-Inflicted Damage . | . Shots . | . Rammed . | . Targets Rammed . | . Kicked . | . Crushed . | . Highest Temperature 300 | 300 Average Temperature 74 | 74 Received Heat Transfer . | . Effects 4 | 4 Interference 4 | 4 Siege Activations . | . Robots Corrupted . | . Combat Hostiles . | . Parts Fried . | . Impact Corruptions . | . Robots Melted . | . Combat Hostiles . | . Parts Melted . | . Heat Transferred 200 | 200 Parts Sabotaged . | . Parts Stolen . | . Parts Stripped . | . Power Chain Reactions . | . Missiles Intercepted . | . Alert | -11 ------- Run | Jun Peak Influence 10 | 10 Initial . | . Average . | . Maximum Alert Level . | . Low Security (%) 100 | 100 Level 1 . | . Level 2 . | . Level 3 . | . Level 4 . | . Level 5 . | . High Security . | . Max Security . | . Squads Dispatched . | . Investigation . | . Extermination . | . Reinforcement . | . Assault . | . Garrison . | . Intercept . | . Searches Triggered . | . Construction Impeded . | . Haulers Reinforced . | . Active Scanning Responses . | . Cargo Convoy Interrupts . | . Stealth | -11 --------- Run | Jun Distress Signals . | . Communications Jammed . | . Distress Signals . | . Times Spotted . | . Peak Tracking Total . | . Tactical Retreats . | . Traps | -11 ------- Run | Jun Traps Triggered . | . Indirectly . | . Trap Hack Attempts . | . Triggered . | . Disarmed . | . Reprogrammed . | . Reused . | . Traps Extracted . | . Installed . | . Triggered . | . Machines | -11 ---------- Run | Jun Machines Disabled . | . Max in Single Turn . | . Machines Repaired . | . Machines Sabotaged . | . Overloaded Fab Kills . | . Hacking | -11 --------- Run | Jun Machines Accessed . | . Terminals . | . Fabricators . | . Repair Stations . | . Recycling Units . | . Scanalyzers . | . Garrison Access . | . Total Hacks . | . Successful . | . Failed . | . Catastrophic . | . Database Lockouts . | . Manual . | . Terminals . | . Fabricators . | . Repair Stations . | . Recycling Units . | . Scanalyzers . | . Garrison Access . | . Terminal Hacks . | . Fabricator Hacks . | . Repair Station Hacks . | . Recycling Unit Hacks . | . Scanalyzer . | . Garrison Access Hacks . | . Unauthorized Hacks . | . Terminals . | . Fabricators . | . Repair Stations . | . Recycling Units . | . Scanalyzers . | . Garrison Access . | . Data Cores Recovered . | . Used . | . Hacking Detections . | . Full Trace Events . | . Feedback Events . | . Feedback Blocked . | . Robot Schematics Acquired . | . Robots Built . | . Authchips . | . Time . | . Total Robot Build Rating . | . Part Schematics Acquired . | . Parts Built . | . Authchips . | . Time . | . Total Part Build Rating . | . Parts Repaired . | . Time . | . Parts Recycled . | . Recycled Matter . | . Retrieved Matter . | . Retrieved Components . | . Parts Scanalyzed . | . Part Schematics Acquired . | . Parts Damaged . | . Bothacking | -11 ------------ Run | Jun Used RIF Installer . | . Robots Hacked . | . Non-combat . | . Combat . | . Robot Hacks Applied . | . Relay Couplers Released . | . Fabnet Peak Effective % . | . Robots Rewired . | . Allies Hacked . | . Hacks Repelled . | . Allies | -11 -------- Run | Jun Total Allies . | . Largest Group . | . Highest-Rated Group . | . Highest-Rated Ally . | . Total Orders . | . Ally Attacks . | . Total Damage . | . Kills . | . Allies Corrupted . | . Allies Melted . | . Intel | -11 ------- Run | Jun Robot Analysis Total . | . Derelict Logs Recovered . | . Drone Launches . | . Drone Recoveries . | . Exploration | -11 ------------- Run | Jun Turns Passed 5252 | 5252 Spaces Moved 1030 | 1030 Core 7 | 7 Treads . | . Legs . | . Wheels 1023 | 1023 Hover . | . Flight . | . Fastest Speed 50 | 50 Average Speed 80 | 80 Slowest Speed 150 | 150 Overloaded Moves . | . Propulsion Burnouts . | . Robots Hopped . | . Cave-ins Triggered 9 | 9 Exploration Rate (%) 103 | 103 Regions Visited . Branch Regions . Pre-discovered Areas . | . Known Exits Taken . | . Unknown Exits Taken . | . Scrap Searched . | . Spaces Dug 60 | 60 Terrain Destroyed 146 | 146 Melee . | . Projectile 146 | 146 AOE . | . Terrain Rammed . | . Walls Destroyed . | . Machines Disabled . | . Actions | -11 --------- Run | Jun Total 4446 | 4446 Wait 3052 | 3052 Move 1029 | 1029 Hop . | . Pick Up 7 | 7 Fast Attach 9 | 9 Attach . | . Detach 2 | 2 Swap 2 | 2 Drop 1 | 1 Fire 343 | 343 Melee . | . Ram . | . Kick . | . Crush . | . Escape Stasis 1 | 1 Rewire . | . Trap . | . Miscellaneous . | . Route ------- -11/Junkyard (discovered 1 exit: [*Mat]) History --------- Turn | Location | Event 12 | -11/Junkyard | Discovered new exit (range 16) 3514 | -11/Junkyard | Assembled infested the area 4038 | -11/Junkyard | Crushed by falling debris 4651 | -11/Junkyard | Crushed by falling debris 4667 | -11/Junkyard | Crushed by falling debris 4755 | -11/Junkyard | Crushed by falling debris 4934 | -11/Junkyard | Crushed by falling debris 4957 | -11/Junkyard | Crushed by falling debris 4957 | -11/Junkyard | Core integrity fell below 50% 4957 | -11/Junkyard | System corruption reached 10% 4974 | -11/Junkyard | Crushed by falling debris 4988 | -11/Junkyard | Lost 3 parts (1p1n1u) 5245 | -11/Junkyard | Crushed by falling debris 5254 | -11/Junkyard | Crushed by falling debris 5254 | -11/Junkyard | Smashed by cave-in Last Messages --------------- 04957_ Wheel destroyed. 04957_ System corrupted by crushing effect (+4). 04961_ System corrupted: Energy discharge (-35). 04974_ The unstable cave ceiling collapses. 04974_ Crushed by falling debris. 04991_ System corrupted: Matter fused (-5). 05008_ 2KXLJYL>NRJ9PD|ARL56= 2H1Y=#L&X25VLCGJ 05027_ System corrupted: Matter fused (-6). 05049_ System corrupted: Matter fused (-10). 05065_ System corrupted: Heat flow error (+250). 05081_ %7PUZYFDQYQNGWFP4UITU=>O=>C TCMMIMEX4G 05102_ System corrupted: Heat flow error (+133). 05123_ R8JXTPJJ7 VV>L>XLC#2/YZFSP44%| 05146_ System corrupted: Component data lost. 05245_ The unstable cave ceiling collapses. 05245_ Crushed by falling debris. 05245_ Sml. Laser destroyed. 05245_ System corrupted by crushing effect (+1). 05254_ The unstable cave ceiling collapses. 05254_ Crushed by falling debris. Map ----- +----------------------------------------------------+ | | | | | | | | | | | | | ??#?#??#?#??????????????????????????????? | | ?????#??????????????????????????????????? | | #?????#??#??????????????????????????????? | | ???????#????#???????????????????????????? | | #???????????????????????????????????????? | | #?????#???????#?????????????????????????? | | ##???#????#?#???????????????????????????? | | ##??#?#??#?????????????????????????????? | | #???#?????????????????????????????????? | | #?????????????????????????????????????? | | ##????#????????????????????????#???????? | | #??#?#?????????????????#???#???????????? | | ##?#?????##???#????????#????????????????? | | ########?#??#???#?????????????#?????????? | | ##?????????#?????????????????????? | | ##?????????#?????#?#?????????????? | | ##??#?#?????????###??????????????? | | ###?????????????# #????????##????? | | #????#?#?????#?####??#??????????? | | ##????????#?????##@#??????????#??? | | ##??#????#?#????####?????##?????#? | | #??#?????????#??# #?#???#?????#??? | | #?????#?????????# #??????????#???? | | ########?#?#????????#?# #??#???????#??#? | | #??#?????????????????###??????????????? | | # #??????#??#?????#???#####??#???????#??? | | ###??????????????#????# ##??????????????? | | #?????????#???????#### ##??????????#??? | | ###???????????#???#????## ###??????#????? | | #??????????????#???#??## ##??##??#???? | | #???#???????#??#??##???# ##???????#???? | | ###????????????##????????# ##?#?????????? | | #??????????????????????####????#??????? | | # #??????#?????????????#??# ###?????????? | | ##????#????????##???#???## ##?????????? | | #######????????????##??# ####??????#??? | | #???????????#?#?### # #?????????? | | ##??#?????#?#????## #?????????#? | | #??#?#????#???????####????#?##??? | | #?????????????##### #??? ??????#? | | #?#??????#???## # ##??????????? | | ################ #??? ??????? | | # # ## #??? ??????? | | # # ## #??????????? | +----------------------------------------------------+ Best States ------------- Heat Dissipation 25 Energy Generation 10 Energy Capacity 250 Matter Stores 300 Matter Capacity 300 Sight Range 16 Terrain Scan Range 16 Terrain Scan Density 10 Evasion (%) 44 Item Schematics ----------------- None Robot Schematics ------------------ None Fabricated ------------ Nothing Alien Tech Used ----------------- None Achievements -------------- Curiosity Killed The Cat Challenges ------------ None Game ------ Seed MappingVariableNullifier Manual? 0 Play Time 00:48:08 Cumulative 47.8 hours Start 2023.09.04 @ 10:22:48 End 2023.09.04 @ 10:51:50 Sessions 0 Manual Loads 0 Difficulty Rogue Special Mode None Game No. 32 Rogue 32 Adventurer 0 Explorer 0 Win Type - Total 0 Types 0/0/0/0/0/0/0/0/0 Lore% 25 Gallery% 33 Achievement% 28 Wizard Run 0 Options --------- ASCII 0 Keyboard 0 Movement Numpad Keybinds 0 Fullscreen 2 Font 18/SmallcapsGlow Map View 76x50 Tactical HUD 1 Map Filters NONE Filters NONE Steam 1 RUN: 65cd07df-93e1-44bb-9848-76364f8f2363